fUST/lending_fUST_20251012
["ID","MTS","AMOUNT","RATE_DAILY","PERIOD"]
[390952443,1760230266084,-350.0,0.00028493,5]
[390952444,1760230266095,-60785.21317976,0.000285,7]
[390952445,1760230266104,-151.87,0.00028526,15]
[390952446,1760230266113,-866.97535698,0.00028554,2]
[390952447,1760230266125,-3292.0,0.00028569,2]
[390952448,1760230266135,-151.87,0.00028626,15]
[390952449,1760230266145,-151.87,0.00028726,15]
[390952450,1760230266154,-981.97391588,0.0002876,2]
[390952451,1760230266164,-13497.13,0.00028767,6]
[390952452,1760230266173,-200.0,0.00028799,120]
[390952453,1760230266182,-151.87,0.00028826,15]
[390952454,1760230266191,-250.0,0.00028887,2]
[390952455,1760230266201,-151.87,0.00028926,15]
[390952456,1760230266211,-2201.74723435,0.0002899,2]
[390952457,1760230266220,-189.7226975,0.00028995,30]
[390952458,1760230266229,-500.0,0.00028998,11]
[390952459,1760230266238,-500.0,0.00028999,11]
[390952460,1760230266247,-200.0,0.00028999,10]
[390952461,1760230266256,-200.0,0.00028999,10]
[390952462,1760230266266,-1194792.61134767,0.00029,120]
[390952463,1760230266275,-1567.70890803,0.00029,120]
[390952464,1760230266284,-417.15472785,0.00029,120]
[390952465,1760230266293,-151.0,0.00029,30]
[390952466,1760230266302,-151.0,0.00029,30]
[390952467,1760230266311,-200.0,0.00029,7]
[390952468,1760230266321,-151.0,0.00029,30]
[390952469,1760230266330,-1567.70890803,0.00029,30]
[390952470,1760230266339,-151.0,0.00029,30]
[390952471,1760230266348,-202.6244,0.00029,30]
[390952472,1760230266357,-202.6244,0.00029,30]
[390952473,1760230266366,-202.6244,0.00029,30]
[390952474,1760230266375,-202.6244,0.00029,30]
[390952475,1760230266385,-439.098643,0.00029,30]
[390952476,1760230266395,-439.098643,0.00029,30]
[390952477,1760230266405,-151.0,0.00029,30]
[390952478,1760230266414,-439.098643,0.00029,30]
[390952479,1760230266424,-151.0,0.00029,30]
[390952480,1760230266433,-439.098643,0.00029,30]
[390952481,1760230266443,-151.0,0.00029,30]
[390952482,1760230266452,-155.177154,0.00029,30]
[390952483,1760230266461,-372.045092,0.00029,30]
[390952484,1760230266471,-372.045092,0.00029,30]
[390952485,1760230266480,-151.0,0.00029,30]
[390952486,1760230266489,-372.045092,0.00029,30]
[390952487,1760230266498,-372.045092,0.00029,30]
[390952488,1760230266508,-183.044696,0.00029,30]
[390952489,1760230266517,-183.044696,0.00029,30]
[390952490,1760230266526,-183.044696,0.00029,30]
[390952491,1760230266535,-183.044696,0.00029,30]
[390952492,1760230266544,-151.0,0.00029,30]
[390952493,1760230266553,-151.0,0.00029,30]
[390952494,1760230266562,-151.0,0.00029,2]
[390952495,1760230266571,-151.0,0.00029,30]
[390952496,1760230266581,-151.0,0.00029,30]
[390952497,1760230266590,-151.0,0.00029,30]
[390952498,1760230266600,-151.0,0.00029,30]
[390952499,1760230266609,-151.0,0.00029,30]
[390952500,1760230266618,-151.0,0.00029,30]
[390952501,1760230266628,-151.0,0.00029,30]
[390952502,1760230266637,-547.335366,0.00029,30]
[390952503,1760230266646,-547.335366,0.00029,30]
[390952504,1760230266657,-547.335366,0.00029,30]
[390952505,1760230266666,-547.335366,0.00029,30]
[390952506,1760230266675,-151.0,0.00029,30]
[390952507,1760230266684,-151.0,0.00029,30]
[390952508,1760230266692,-151.0,0.00029,30]
[390952509,1760230266701,-151.0,0.00029,30]
[390952510,1760230266711,-229.02777,0.00029,30]
[390952511,1760230266719,-229.02777,0.00029,30]
[390952512,1760230266729,-229.02777,0.00029,30]
[390952513,1760230266738,-229.027763,0.00029,30]
[390952514,1760230266747,-151.0,0.00029,30]
[390952515,1760230266756,-151.0,0.00029,30]
[390952516,1760230266766,-151.0,0.00029,30]
[390952517,1760230266812,-151.0,0.00029,30]
[390952518,1760230266821,-151.0,0.00029,30]
[390952519,1760230266830,-723.727711,0.00029,30]
[390952520,1760230266839,-723.727711,0.00029,30]
[390952521,1760230266848,-723.727711,0.00029,30]
[390952522,1760230266857,-723.727715,0.00029,30]
[390952523,1760230266866,-151.0,0.00029,30]
[390952524,1760230266875,-151.0,0.00029,30]
[390952525,1760230266888,-151.0,0.00029,30]
[390952526,1760230266896,-256.893011,0.00029,30]
[390952527,1760230266906,-256.893011,0.00029,30]
[390952528,1760230266915,-256.893011,0.00029,30]
[390952529,1760230266925,-256.893015,0.00029,30]
[390952530,1760230266934,-210.786716,0.00029,15]
[390952531,1760230266943,-210.786716,0.00029,15]
[390952532,1760230266954,-210.786716,0.00029,15]
[390952533,1760230266963,-210.786706,0.00029,15]
[390952534,1760230266973,-151.0,0.00029,30]
[390952535,1760230266983,-151.0,0.00029,30]
[390952536,1760230266995,-181.493666,0.00029,30]
[390952537,1760230267004,-249.699503,0.00029,30]
[390952538,1760230267014,-249.699503,0.00029,30]
[390952539,1760230267024,-249.699503,0.00029,30]
[390952540,1760230267033,-249.699504,0.00029,30]
[390952541,1760230267044,-151.0,0.00029,30]
[390952542,1760230267055,-192.099203,0.00029,30]
[390952543,1760230267065,-192.099203,0.00029,30]
[390952544,1760230267074,-192.099203,0.00029,30]
[390952545,1760230267084,-192.099201,0.00029,30]
[390952546,1760230267094,-151.0,0.00029,30]
[390952547,1760230267103,-151.0,0.00029,30]
[390952548,1760230267112,-151.0,0.00029,30]
[390952549,1760230267123,-151.0,0.00029,30]
[390952550,1760230267134,-151.0,0.00029,30]
[390952551,1760230267144,-190.760591,0.00029,30]
[390952552,1760230267153,-190.760591,0.00029,30]
[390952553,1760230267163,-190.760591,0.00029,30]
[390952554,1760230267173,-190.760592,0.00029,30]
[390952555,1760230267182,-186.648147,0.00029,30]
[390952556,1760230267191,-186.648147,0.00029,30]
[390952557,1760230267200,-186.648147,0.00029,30]
[390952558,1760230267210,-186.648139,0.00029,30]
[390952559,1760230267220,-151.0,0.00029,30]
[390952560,1760230267230,-151.0,0.00029,30]
[390952561,1760230267239,-410.651133,0.00029,30]
[390952562,1760230267249,-410.651133,0.00029,30]
[390952563,1760230267259,-410.651133,0.00029,30]
[390952564,1760230267269,-410.651137,0.00029,30]
[390952565,1760230267279,-151.0,0.00029,30]
[390952566,1760230267288,-151.0,0.00029,30]
[390952567,1760230267298,-151.0,0.00029,30]
[390952568,1760230267308,-151.0,0.00029,30]
[390952569,1760230267318,-151.0,0.00029,30]
[390952570,1760230267327,-151.0,0.00029,30]
[390952571,1760230267336,-151.0,0.00029,30]
[390952572,1760230267346,-151.0,0.00029,30]
[390952573,1760230267355,-151.0,0.00029,30]
[390952574,1760230267364,-447.993979,0.00029,30]
[390952575,1760230267374,-447.993979,0.00029,30]
[390952576,1760230267385,-447.993979,0.00029,30]
[390952577,1760230267395,-447.993976,0.00029,30]
[390952578,1760230267403,-151.0,0.00029,30]
[390952579,1760230267412,-554.809293,0.00029,30]
[390952580,1760230267421,-151.0,0.00029,30]
[390952581,1760230267430,-554.809293,0.00029,30]
[390952582,1760230267440,-151.87,0.00029026,15]
[390952583,1760230267450,-950.0,0.00029041,5]
[390952584,1760230267459,-470.11389129,0.00029041,5]
[390952585,1760230267468,-156.29549428,0.00029115,7]
[390952586,1760230267477,-151.87,0.00029126,15]
[390952587,1760230267485,-1826.91,0.00029151,2]
[390952588,1760230267495,-916.04943379,0.00029154,2]
[390952589,1760230267504,-151.87,0.00029226,15]
[390952590,1760230267513,-200.48081747,0.00029302,10]
[390952591,1760230267523,-980.0,0.00029303,2]
[390952592,1760230267531,-630.0,0.00029303,2]
[390952593,1760230267541,-2159.0,0.00029303,2]
[390952594,1760230267550,-150.0,0.00029303,2]
[390952596,1760230267559,-4196.0,0.00029303,2]
[390952597,1760230267568,-151.87,0.00029326,15]
[390952598,1760230267577,-1000.0,0.0002942,5]
[390952599,1760230267586,-151.93098415,0.00029426,15]
[390952600,1760230267595,-158.93055,0.00029445,2]
[390952601,1760230267604,-588.4106815,0.00029534,30]
[390952602,1760230267614,-1050.0,0.00029589,5]
[390952603,1760230267624,-200.0,0.00029753,120]
[390952604,1760230267635,-965.1235106,0.00029754,2]
[390952605,1760230267645,-2000.0,0.00029842,5]
[390952606,1760230267655,-297.8851395,0.0002989,30]
[390952607,1760230267664,-162.8757457,0.0002989,30]
[390952608,1760230267673,-189.7226975,0.0002989,30]
[390952609,1760230267683,-306.0,0.0002989,30]
[390952610,1760230267692,-588.4106815,0.0002989,30]
[390952611,1760230267702,-297.8851395,0.0002989,30]
[390952612,1760230267712,-162.8757457,0.0002989,30]
[390952613,1760230267721,-588.4106815,0.0002989,30]
[390952614,1760230267731,-306.0,0.0002989,30]
[390952615,1760230267740,-297.8851395,0.0002989,30]
[390952616,1760230267749,-162.8757457,0.0002989,30]
[390952617,1760230267759,-153.0,0.0002989,30]
[390952618,1760230267768,-588.4106815,0.0002989,30]
[390952619,1760230267778,-596.3938819,0.0002989,30]
[390952620,1760230267787,-162.8757457,0.0002989,30]
[390952621,1760230267796,-162.8757457,0.0002989,30]
[390952622,1760230267806,-21963.33062877,0.00029897,6]
[390952623,1760230267815,-3030.36,0.000299,2]
[390952624,1760230267824,-6952.48,0.000299,2]
[390952625,1760230267834,-298.08050243,0.0003,120]
[390952626,1760230267843,-160.0,0.0003,120]
[390952627,1760230267852,-1000.0,0.0003,4]
[390952628,1760230267861,-1000.0,0.00030092,30]
[390952629,1760230267871,-52315.454373,0.0003012,7]
[390952630,1760230267881,-189.5,0.00030136,120]
[390952631,1760230267890,-13497.13,0.00030136,8]
[390952632,1760230267900,-283.10368179,0.00030137,5]
[390952633,1760230267909,-213.0,0.00030229,60]
[390952634,1760230267919,-1000.0,0.00030253,14]
[390952635,1760230267928,-151.0,0.00030253,30]
[390952636,1760230267937,-202.6244,0.00030253,30]
[390952637,1760230267946,-202.6244,0.00030253,30]
[390952638,1760230267956,-202.6244,0.00030253,30]
[390952639,1760230267965,-202.6244,0.00030253,30]
[390952640,1760230267975,-439.098643,0.00030253,30]
[390952641,1760230267983,-439.098643,0.00030253,30]
[390952642,1760230267993,-151.0,0.00030253,30]
[390952643,1760230268002,-439.098643,0.00030253,30]
[390952644,1760230268011,-151.0,0.00030253,30]
[390952645,1760230268020,-439.098647,0.00030253,30]
[390952646,1760230268029,-151.0,0.00030253,30]
[390952647,1760230268040,-1000.0,0.00030256,14]
[390952648,1760230268055,-1000.0,0.00030259,14]
[390952649,1760230268065,-1000.0,0.00030262,14]
[390952650,1760230268075,-1000.0,0.00030264,14]
[390952651,1760230268087,-1000.0,0.00030267,14]
[390952652,1760230268097,-1000.0,0.0003027,14]
[390952653,1760230268107,-189.5,0.00030273,120]
[390952654,1760230268119,-1000.0,0.00030273,14]
[390952655,1760230268131,-1000.0,0.00030276,14]
[390952656,1760230268140,-1000.0,0.00030279,14]
[390952657,1760230268150,-1000.0,0.00030282,14]
[390952658,1760230268160,-1000.0,0.00030285,14]
[390952659,1760230268169,-1000.0,0.00030287,14]
[390952660,1760230268179,-1000.0,0.0003029,14]
[390952661,1760230268189,-4497.5112692,0.00030291,60]
[390952662,1760230268199,-1000.0,0.00030293,14]
[390952663,1760230268211,-657.3435426,0.00030296,14]
[390952664,1760230268221,-150.0,0.00030301,2]
[390952665,1760230268230,-150.0,0.00030301,2]
[390952666,1760230268240,-151.0,0.00030302,30]
[390952667,1760230268249,-151.0,0.00030302,30]
[390952668,1760230268259,-870.0,0.00030303,60]
[390952669,1760230268269,-160.0,0.00030308,5]
[390952670,1760230268279,-372.045092,0.00030332,30]
[390952671,1760230268289,-372.045092,0.00030332,30]
[390952672,1760230268299,-151.0,0.00030332,30]
[390952673,1760230268309,-372.045092,0.00030332,30]
[390952674,1760230268319,-372.045101,0.00030332,30]
[390952675,1760230268329,-183.044696,0.00030332,30]
[390952676,1760230268339,-183.044696,0.00030332,30]
[390952677,1760230268349,-183.044696,0.00030332,30]
[390952678,1760230268359,-183.044688,0.00030332,30]
[390952679,1760230268369,-151.0,0.00030332,30]
[390952680,1760230268379,-151.0,0.00030332,30]
[390952681,1760230268388,-151.0,0.00030332,2]
[390952682,1760230268398,-151.0,0.00030332,30]
[390952683,1760230268408,-151.0,0.00030332,30]
[390952684,1760230268417,-151.0,0.00030332,30]
[390952685,1760230268427,-220.875325,0.00030332,30]
[390952686,1760230268436,-151.0,0.00030332,30]
[390952687,1760230268445,-151.0,0.00030332,30]
[390952688,1760230268455,-151.0,0.00030332,30]
[390952689,1760230268465,-547.335366,0.00030332,30]
[390952690,1760230268474,-547.335366,0.00030332,30]
[390952691,1760230268483,-547.335366,0.00030332,30]
[390952692,1760230268493,-547.335357,0.00030332,30]
[390952693,1760230268503,-151.0,0.00030332,30]
[390952694,1760230268513,-151.0,0.00030332,30]
[390952695,1760230268523,-151.0,0.00030332,30]
[390952696,1760230268533,-10000.0,0.00030332,2]
[390952697,1760230268543,-7290.0,0.00030332,2]
[390952698,1760230268553,-184.78247473,0.0003034,2]
[390952699,1760230268562,-91379.92878483,0.00030347,2]
[390952700,1760230268574,-225.64669928,0.00030347,15]
[390952701,1760230268583,-300.0,0.00030347,2]
[390952702,1760230268593,-3886.18743866,0.00030347,2]
[390952703,1760230268603,-810.81339319,0.00030347,2]
[390952704,1760230268614,-258.55525668,0.00030347,2]
[390952705,1760230268623,-240.4597466,0.00030347,10]
[390952706,1760230268633,-297.28479008,0.00030347,2]
[390952707,1760230268643,-50010.84860944,0.00030347,5]
[390952708,1760230268652,-327.45706987,0.00030347,2]
[390952709,1760230268662,-292.24761959,0.00030347,2]
[390952710,1760230268671,-194.87567149,0.00030347,12]
[390952711,1760230268681,-638.11049295,0.00030347,2]
[390952712,1760230268690,-1363.69842866,0.00030347,2]
[390952713,1760230268700,-156.83351984,0.00030347,2]
[390952714,1760230268709,-6301.29202423,0.00030347,2]
[390952715,1760230268719,-1095.84666558,0.00030347,10]
[390952716,1760230268729,-157.83419757,0.00030347,2]
[390952717,1760230268738,-8667.76722455,0.00030347,2]
[390952718,1760230268748,-1719.20816001,0.00030347,2]
[390952719,1760230268758,-3740.28664698,0.00030347,7]
[390952720,1760230268769,-3587.999999,0.00030347,7]
[390952721,1760230268779,-2078.97304031,0.00030347,2]
[390952722,1760230268789,-429.16435768,0.00030347,7]
[390952723,1760230268799,-1500.0,0.00030347,3]
[390952724,1760230268810,-200.0,0.00030347,10]
[390952725,1760230268820,-10590.79276867,0.00030347,7]
[390952726,1760230268830,-508.24618066,0.00030347,2]
[390952727,1760230268840,-1002.02249188,0.00030347,2]
[390952728,1760230268850,-468.46283752,0.00030347,2]
[390952729,1760230268860,-179.53231605,0.00030347,2]
[390952730,1760230268870,-498.0,0.00030347,7]
[390952731,1760230268880,-909.9648072,0.00030347,14]
[390952732,1760230268890,-26000.79999935,0.00030347,6]
[390952733,1760230268900,-30482.30003228,0.00030347,2]
[390952734,1760230268910,-189.41571748,0.00030347,2]
[390952735,1760230268920,-1398.74796368,0.00030347,2]
[390952736,1760230268931,-5903.3103795,0.00030347,2]
[390952737,1760230268941,-10694.86721083,0.00030347,2]
[390952738,1760230268950,-652.03904262,0.00030347,2]
[390952739,1760230268960,-1541.04435632,0.00030347,14]
[390952740,1760230268970,-154.3487781,0.00030347,7]
[390952741,1760230268980,-2920.0,0.00030347,2]
[390952742,1760230268990,-813.13950623,0.00030347,15]
[390952743,1760230268999,-10467.49218952,0.00030347,2]
[390952744,1760230269009,-20000.0,0.00030347,30]
[390952745,1760230269020,-1444.53304621,0.00030347,2]
[390952746,1760230269030,-385.35044903,0.00030347,2]
[390952747,1760230269041,-201.60726783,0.00030347,2]
[390952748,1760230269054,-1521.08806413,0.00030347,15]
[390952749,1760230269064,-3151.02793611,0.00030347,2]
[390952750,1760230269074,-365.10385937,0.00030347,2]
[390952751,1760230269084,-166.78596952,0.00030347,2]
[390952752,1760230269096,-2516.98535222,0.00030347,7]
[390952753,1760230269106,-59734.97139421,0.00030347,2]
[390952755,1760230281207,223.1,0.00020173,2]
[390952756,1760230330889,-300.0,0.00021951,2]
[390952757,1760230345489,1200.0,0.00021951,2]
[390952758,1760230347026,-6419.73394137,0.00021952,3]
[390952759,1760230347452,-10000.01,0.00021952,3]
[390952760,1760230347548,-10000.01,0.00021952,3]
[390952761,1760230356080,-2230.34263745,0.00021952,3]
[390952762,1760230357156,5000.0,0.00021951,2]
[390952763,1760230369552,539.3247251,0.00021951,2]
[390952764,1760230369573,128.4552749,0.00021951,2]
[390952765,1760230369816,667.78,0.00021951,2]
[390952766,1760230370072,667.78,0.00021951,2]
[390952767,1760230370301,667.78,0.00021951,2]
[390952768,1760230370528,667.78,0.00021951,2]
[390952769,1760230370702,220.27,0.00021725,2]
[390952770,1760230370763,667.78,0.00021951,2]
[390952771,1760230370988,667.78,0.00021951,2]
[390952772,1760230371223,667.78,0.00021951,2]
[390952773,1760230371442,667.78,0.00021951,2]
[390952774,1760230371667,667.78,0.00021951,2]
[390952775,1760230371914,667.78,0.00021951,2]
[390952776,1760230372141,667.78,0.00021951,2]
[390952777,1760230372373,667.78,0.00021951,2]
[390952778,1760230372605,667.78,0.00021951,2]
[390952779,1760230372840,667.78,0.00021951,2]
[390952780,1760230373133,302.3647251,0.00021987,2]
[390952781,1760230373159,4697.6352749,0.00021987,2]
[390952782,1760230373269,667.78,0.00021951,2]
[390952783,1760230373505,667.78,0.00021951,2]
[390952784,1760230373749,667.78,0.00021951,2]
[390952785,1760230374005,667.78,0.00021951,2]
[390952786,1760230374264,667.78,0.00021951,2]
[390952787,1760230374498,667.78,0.00021951,2]
[390952788,1760230374772,667.78,0.00021951,2]
[390952789,1760230374998,627.9147251,0.00021951,2]
[390952790,1760230375024,39.8652749,0.00021951,2]
[390952791,1760230375244,667.85313481,0.00021951,2]
[390952792,1760230376033,-586.69738241,0.0002204,2]
[390952793,1760230376063,-180.68118654,0.0002204,2]
[390952794,1760230376097,-213.49048399,0.0002204,2]
[390952795,1760230376126,-500.0,0.0002204,2]
[390952796,1760230376155,-500.0,0.0002204,2]
[390952797,1760230376183,-612.15904802,0.0002204,2]
[390952798,1760230376211,-500.0,0.0002204,2]
[390952799,1760230376254,-586.69738241,0.0002204,2]
[390952800,1760230376284,-500.0,0.0002204,2]
[390952801,1760230376314,-500.0,0.0002204,2]
[390952802,1760230376344,-53.86165085,0.0002204,2]
[390952803,1760230376679,-532.83573156,0.0002204,2]
[390952804,1760230376706,-500.0,0.0002204,2]
[390952805,1760230376734,-500.0,0.0002204,2]
[390952806,1760230376761,-500.0,0.0002204,2]
[390952807,1760230376789,-586.69738241,0.0002204,2]
[390952808,1760230376817,-586.69738241,0.0002204,2]
[390952809,1760230376848,-500.0,0.0002204,2]
[390952810,1760230376875,-500.0,0.0002204,2]
[390952811,1760230376902,-500.0,0.0002204,2]
[390952812,1760230377075,-642.61557335,0.0002204,2]
[390952813,1760230377106,-586.69738241,0.0002204,2]
[390952814,1760230377138,-500.0,0.0002204,2]
[390952815,1760230377172,-500.0,0.0002204,2]
[390952816,1760230377206,-586.69738241,0.0002204,2]
[390952817,1760230377235,-500.0,0.0002204,2]
[390952818,1760230377262,-500.0,0.0002204,2]
[390952819,1760230377291,-586.69738241,0.0002204,2]
[390952820,1760230377319,-500.0,0.0002204,2]
[390952821,1760230377384,-586.69738241,0.0002204,2]
[390952822,1760230377416,-500.0,0.0002204,2]
[390952823,1760230377444,-500.0,0.0002204,2]
[390952824,1760230377478,-586.69738241,0.0002204,2]
[390952825,1760230377510,-500.0,0.0002204,2]
[390952826,1760230377540,-586.69738241,0.0002204,2]
[390952827,1760230377570,-500.0,0.0002204,2]
[390952828,1760230377599,-500.0,0.0002204,2]
[390952829,1760230377629,-586.69738241,0.0002204,2]
[390952830,1760230377801,-586.69738241,0.0002204,2]
[390952831,1760230377830,-500.0,0.0002204,2]
[390952832,1760230377859,-586.69738241,0.0002204,2]
[390952833,1760230377886,-466.11312851,0.0002204,2]
[390952834,1760230377915,-586.69738241,0.0002204,2]
[390952835,1760230377942,-500.0,0.0002204,2]
[390952836,1760230377972,-586.69738241,0.0002204,2]
[390952837,1760230377999,-500.0,0.0002204,2]
[390952838,1760230378028,-586.69738241,0.0002204,2]
[390952839,1760230392185,-2594.4,0.00021878,10]
[390952840,1760230392582,-4811.21,0.00021878,10]
[390952841,1760230393038,-830.35879177,0.00021888,2]
[390952842,1760230393066,-10000.01,0.00021888,2]
[390952843,1760230393125,-10000.01,0.00021888,2]
[390952844,1760230393280,-10000.01,0.00021888,2]
[390952845,1760230402149,-1000.0,0.00021669,2]
[390952846,1760230402187,-6171.34,0.00021878,10]
[390952847,1760230402197,-1828.67,0.00021888,2]
[390952848,1760230402270,-10000.01,0.00021888,2]
[390952849,1760230402426,-10000.01,0.00021888,2]
[390952850,1760230402543,-10000.01,0.00021888,2]
[390952851,1760230402645,-10000.01,0.00021888,2]
[390952852,1760230402749,-10000.01,0.00021888,2]
[390952853,1760230412261,-10000.01,0.00021888,2]
[390952854,1760230412453,-10000.01,0.00021888,2]
[390952855,1760230422196,-5000.0,0.00021659,2]
[390952856,1760230422230,-0.01,0.00021878,10]
[390952857,1760230422292,-4857.23,0.00021878,10]
[390952858,1760230422314,-285.55,0.00021878,10]
[390952859,1760230422428,-10000.01,0.00021888,2]
[390952860,1760230422544,-10000.01,0.00021888,2]
[390952861,1760230422678,-10000.01,0.00021888,2]
[390952862,1760230422810,-10000.01,0.00021888,2]
[390952863,1760230426254,-2455.89,0.00021878,10]
[390952864,1760230426275,-5088.23,0.00021878,10]
[390952865,1760230426490,-10000.01,0.00021888,2]
[390952866,1760230426633,-10000.01,0.00021888,2]
[390952867,1760230439663,-166.95068235,0.00021669,2]
[390952868,1760230442114,5000.0,0.0002161,2]
[390952869,1760230443840,-263.35740281,0.00021669,2]
[390952870,1760230448630,-156.76143765,0.00021669,2]
[390952871,1760230451660,-234.93634612,0.00021669,2]
[390952872,1760230464310,5000.0,0.0002161,2]
[390952873,1760230464888,-162.62681016,0.00021669,2]
[390952874,1760230466466,-272.0102436,0.00021669,2]
[390952875,1760230466489,-71.46610282,0.00021681,2]
[390952876,1760230475540,0.01,0.0002161,2]
[390952877,1760230475563,159.99,0.0002161,2]
[390952878,1760230487236,5000.0,0.00021669,2]
[390952879,1760230495085,823.0,0.0002161,2]
[390952881,1760230509698,4177.01,0.00021669,2]
[390952882,1760230513697,-822.99,0.00021669,2]
[390952883,1760230519478,300.0,0.000216,2]
[390952884,1760230529789,-205.10522659,0.00021788,2]
[390952885,1760230530570,348.05,0.00021657,2]
[390952886,1760230532447,5000.0,0.00021669,2]
[390952887,1760230545818,-263.99643125,0.00021851,2]
[390952888,1760230545841,-23.64747906,0.00021877,2]
[390952889,1760230555837,4241.74954682,0.00021788,2]
[390952890,1760230555860,758.25045318,0.00021788,2]
[390952891,1760230558898,-276.35252094,0.00021877,2]
[390952892,1760230558925,-300.0,0.00021877,2]
[390952893,1760230558955,-300.0,0.00021877,2]
[390952894,1760230558982,-3031.81,0.00021878,10]
[390952895,1760230559010,-983.68495812,0.00021886,2]
[390952896,1760230563945,-4218.54,0.00021878,10]
[390952897,1760230567952,-1562.93,0.00021878,10]
[390952898,1760230567980,-216.31504188,0.00021886,2]
[390952899,1760230568010,-182.51284148,0.00021887,2]
[390952900,1760230568040,-500.0,0.00021887,2]
[390952901,1760230568072,-496.23479206,0.00021887,2]
[390952902,1760230568102,-500.0,0.00021887,2]
[390952903,1760230568139,-500.0,0.00021887,2]
[390952904,1760230568170,-500.0,0.00021887,2]
[390952905,1760230568201,-500.0,0.00021887,2]
[390952906,1760230573000,-500.0,0.00021887,2]
[390952907,1760230573030,-500.0,0.00021887,2]
[390952908,1760230573060,-500.0,0.00021887,2]
[390952909,1760230573088,-500.0,0.00021887,2]
[390952910,1760230573116,-500.0,0.00021887,2]
[390952911,1760230573148,-500.0,0.00021887,2]
[390952912,1760230573176,-500.0,0.00021887,2]
[390952913,1760230573205,-500.0,0.00021887,2]
[390952914,1760230573234,-500.0,0.00021887,2]
[390952915,1760230573263,-500.0,0.00021887,2]
[390952916,1760230573501,-230.03978958,0.00021887,2]
[390952917,1760230573523,-35.26399994,0.00021887,2]
[390952918,1760230577070,-4817.89,0.00021878,10]
[390952919,1760230578743,5000.0,0.00021788,2]
[390952921,1760230594067,-464.73600006,0.00021887,2]
[390952922,1760230594094,-500.0,0.00021887,2]
[390952923,1760230594123,-500.0,0.00021887,2]
[390952924,1760230594155,-500.0,0.00021887,2]
[390952925,1760230594186,-500.0,0.00021887,2]
[390952926,1760230594215,-500.0,0.00021887,2]
[390952927,1760230594248,-500.0,0.00021887,2]
[390952928,1760230594277,-500.0,0.00021887,2]
[390952929,1760230594306,-500.0,0.00021887,2]
[390952930,1760230594334,-500.0,0.00021887,2]
[390952931,1760230598086,-4014.91,0.00021878,10]
[390952932,1760230598119,-500.0,0.00021887,2]
[390952933,1760230598155,-470.19,0.00021887,2]
[390952934,1760230600118,-29.81,0.00021887,2]
[390952935,1760230600149,-500.0,0.00021887,2]
[390952936,1760230600179,-500.0,0.00021887,2]
[390952937,1760230600208,-500.0,0.00021887,2]
[390952938,1760230600238,-500.0,0.00021887,2]
[390952939,1760230600268,-500.0,0.00021887,2]
[390952940,1760230600297,-500.0,0.00021887,2]
[390952941,1760230600324,-500.0,0.00021887,2]
[390952942,1760230600353,-500.0,0.00021887,2]
[390952943,1760230600381,-500.0,0.00021887,2]
[390952944,1760230600408,-440.39,0.00021887,2]
[390952945,1760230602175,-59.61,0.00021887,2]
[390952946,1760230602204,-500.0,0.00021887,2]